Cogmind - Beta 15 @@@ ROGUE MODE // 2025.07.04 @ 17:35:42 Player: opdo Result: Destroyed by S-10 Pest with Light Assault Rifle Performance ------------- Evolutions (0) 0 Regions Visited (2) 400 Robots Destroyed (25) 125 Value Destroyed (719) 719 Prototype IDs (2) 40 Alien Tech Used (0) 0 Bonus (0) 0 TOTAL SCORE: 1284 Bonus ------- None Cogmind --------- Core Integrity 0/250 Matter 277/300 Energy 155/170 System Corruption 0% Temperature Cool (0) Movement Rolling (120) Ox1 Location -10/Subcaves Parts ------- > --- POWER (1) -------- Makeshift Power Source > --- PROPULSION (2) --- Subdweller Monowheel > --- UTILITY (2) ------ Large Storage Unit Machine Analyzer > --- WEAPON (2) ------- Heavy Assault Rifle Grenade Launcher > --- INVENTORY (15) --- Light Ion Engine Light Ion Engine Aluminum Leg Subdweller Monowheel Medium Matter Pod (100) Structural Scanner Scrap Shield Subdweller Beam Cannon Autogun Subdweller Machine Gun Subdweller Machine Gun Subdweller Machine Gun Subdweller Shrapnel Launcher Mining Laser Peak State ------------ > --- POWER ------------ Makeshift Power Source > --- PROPULSION ------- Subdweller Monowheel Subdweller Monowheel > --- UTILITY ---------- Large Storage Unit Machine Analyzer > --- WEAPON ----------- Heavy Assault Rifle Autogun > --- INVENTORY -------- Light Ion Engine Light Ion Engine Aluminum Leg Subdweller Monowheel Medium Matter Pod Structural Scanner Scrap Shield Subdweller Beam Cannon Heavy Assault Rifle Battle Rifle Subdweller Machine Gun Grenade Launcher Subdweller Shrapnel Launcher Mining Laser [Rating: 18] Favorites ----------- Power Light Nuclear Core Engine Makeshift Power Source Power Core Light Nuclear Core Propulsion Light Treads Treads Light Treads Leg Aluminum Leg Wheel Subdweller Monowheel Utility Large Storage Unit Device Improved Terrain Scanner Storage Large Storage Unit Processor Machine Analyzer Weapon Heavy Assault Rifle Ballistic Gun Heavy Assault Rifle Launcher Grenade Launcher Special Weapon Mining Laser Build | -11 -10 -10 ------- Run | Yrd Mat Sub Slots Evolved . | . . . Power . | . . . Propulsion . | . . . Utility . | . . . Weapon . | . . . Parts Attached 29 | 7 8 14 Power 5 | 1 2 2 Engine 4 | 1 1 2 Core 1 | . 1 . Reactor . | . . . Propulsion 8 | 2 2 4 Treads 2 | . 2 . Leg 2 | 2 . . Wheel 4 | . . 4 Hover . | . . . Flight . | . . . Utility 4 | 2 1 1 Device 1 | 1 . . Storage 2 | 1 1 . Processor 1 | . . 1 Hackware . | . . . Protection . | . . . Artifact . | . . . Weapon 12 | 2 3 7 Energy Gun . | . . . Energy Cannon . | . . . Ballistic Gun 10 | 2 2 6 Ballistic Cannon . | . . . Launcher 1 | . . 1 Special Weapon 1 | . 1 . Impact Weapon . | . . . Slashing Weapon . | . . . Piercing Weapon . | . . . Special Melee Weapon . | . . . Unidentified Prototypes . | . . . Parts Lost 10 | . 2 8 Power 1 | . . 1 Propulsion 5 | . 2 3 Utility 1 | . . 1 Weapon 3 | . . 3 Highest Loss Streak 5 | . 2 5 To Critical Strikes . | . . . Average Backups 10 | 2 6 13 Power 1 | . 1 1 Propulsion 1 | 1 1 1 Utility 2 | . 1 2 Weapon 5 | . 2 6 Tool/Special . | . . . Unused Backups 9 | . . 9 Power 1 | . . 1 Propulsion 2 | . . 2 Utility 3 | . . 3 Weapon 3 | . . 3 Tool/Special . | . . . Average Slot Usage (%) 97 | . 100 95 Engine 7 | . 7 8 Core 6 | . 7 5 Treads 12 | . 14 11 Leg 5 | . 13 . Wheel 8 | . . 13 Device 8 | . 14 5 Storage 14 | . 14 14 Processor 5 | . . 8 Ballistic Gun 25 | . 25 25 Special Weapon 2 | . 2 2 Peak Build Rating 18 | 9 14 18 Average Rating 13 | 5 10 15 On Entrance 7 | . 9 14 Naked Turns . | . . . Heaviest Build 33 | 14 32 33 Greatest Support 40 | 20 40 40 Greatest Overweight (x) 1 | . . 1 Average Overweight (x) . | . . . Largest Inventory Capacity 15 | 8 15 15 Average Capacity 12 | 7 9 15 Most Carried 15 | 4 9 15 Average Carried 10 | 2 6 13 Final Capacity 15 | 8 15 15 Final Carried 15 | 4 9 15 Class Distribution -------------------- 78% | Mutant 21% | Scavenger-Mutant Dominant Class ---------------- Mutant | -10/Materials Mutant | -10/Subcaves Resources | -11 -10 -10 ----------- Run | Yrd Mat Sub Matter Collected 1154 | 270 181 703 Remotely . | . . . Salvage Created 862 | 47 356 459 Parts 65 | 6 23 36 Haulers Intercepted . | . . . Recyclers Shooed . | . . . Parts Field Recycled . | . . . Retrieved Matter . | . . . Parts Self-Destructed 1 | . . 1 Prevented . | . . . Kills | -11 -10 -10 ------- Run | Yrd Mat Sub Combat Hostiles Destroyed 21 | . 10 11 Guns 19 | . 10 9 AOE 2 | . . 2 Classes Destroyed 7 | 1 4 2 Worker 1 | . 1 . Tunneler 2 | 2 . . Mechanic 1 | . 1 . Swarmer 5 | . 5 . Grunt 5 | . 5 . Sentry 1 | . . 1 Subdweller 10 | . . 10 Best Kill Streak 4 | 2 4 2 Combat Bots Only 3 | . 3 2 Max Kills in Single Turn 1 | 1 1 1 Gunslinging . | . . . Exploded 1 | . . 1 Melee . | . . . Uniques/NPCs Destroyed . | . . . Combat | -11 -10 -10 -------- Run | Yrd Mat Sub Hostile Shots Fired 139 | . 63 76 Missed 39 | . 20 19 Hits 100 | . 43 57 Projectile 100 | . 43 57 Critical Strikes 2 | . . 2 Damage Taken 1820 | . 485 1335 Core 250 | . 81 169 Absorbed by Shields . | . . . Core Remaining (%) 100 | 100 . . Volleys Fired 116 | 9 49 58 Largest 2 | 2 2 2 Hottest 123 | 40 100 123 Shots Fired 226 | 18 97 111 Gun 214 | 18 96 100 Cannon . | . . . Launcher 2 | . . 2 Special 10 | . 1 9 Kinetic 214 | 18 96 100 Thermal 10 | . 1 9 Explosive 2 | . . 2 Electromagnetic . | . . . Robot Hit Streak 17 | 11 15 17 Robot Miss Streak 9 | 1 9 3 Penetration Max . | . . . Secondary Targets 2 | . 2 . Max Gunslinging Chain 1 | . 1 . Shots Hit Robots 147 | 14 56 77 Core Hits 47 | 5 23 19 Critical Kills 1 | . . 1 Critical Parts Destroyed . | . . . Critical Strikes 1 | . . 1 Destroy 1 | . . 1 Melee Attacks . | . . . Impact . | . . . Slashing . | . . . Piercing . | . . . Sneak Attacks . | . . . Combat Hostiles . | . . . Follow-up Attacks . | . . . Damage Inflicted 2000 | 142 604 1254 Guns 1857 | 142 604 1111 Cannons . | . . . Explosions 143 | . . 143 Melee . | . . . Ramming . | . . . Kinetic 1857 | 142 604 1111 Thermal . | . . . Explosive 143 | . . 143 Electromagnetic . | . . . Impact . | . . . Slashing . | . . . Piercing . | . . . Highest Corruption . | . . . Average Corruption . | . . . Corruption Purged . | . . . Corruption Blocked . | . . . Overload Shots . | . . . Overflow Damage . | . . . Projectiles . | . . . Explosions . | . . . Melee . | . . . Knockbacks . | . . . Impact . | . . . Kinetic . | . . . Secondary . | . . . Self-Inflicted Damage . | . . . Shots . | . . . Rammed . | . . . Targets Rammed 1 | . 1 . Kicked 1 | . 1 . Crushed . | . . . Highest Temperature 28 | . 28 . Average Temperature 7 | . 7 . Received Heat Transfer 525 | . 201 324 Siege Activations . | . . . Martial Activations . | . . . Shielding Activations . | . . . Robots Disrupted . | . . . Combat Hostiles . | . . . Robots Corrupted . | . . . Combat Hostiles . | . . . Parts Fried . | . . . Impact Corruptions . | . . . Robots Melted . | . . . Combat Hostiles . | . . . Parts Melted . | . . . Heat Transferred . | . . . Parts Sabotaged . | . . . Parts Stolen . | . . . Parts Stripped . | . . . Power Chain Reactions . | . . . Alert | -11 -10 -10 ------- Run | Yrd Mat Sub Maximum Alert Level . | . . . Low Security (%) 100 | 100 100 . Level 1 . | . . . Level 2 . | . . . Level 3 . | . . . Level 4 . | . . . Level 5 . | . . . High Security . | . . . Max Security . | . . . Peak Influence 146 | 10 146 . Initial . | . . . Average 49 | 1 54 . Influence Increases 328 | 10 298 20 Destroy 0b10 Robot/C 220 | . 200 20 Destroy 0b10 Robot/NC 20 | 10 10 . Destroy Leader 50 | . 50 . Successful Hack 7 | . 7 . Destroy Structure 1 | . 1 . Lose Combat Pursuer 30 | . 30 . Influence Decreases 328 | 10 298 20 Time Decay 298 | 10 268 20 Lost Part 20 | . 20 . Lost Ally 10 | . 10 . Squads Dispatched 2 | . 2 . Investigation . | . . . Extermination . | . . . Reinforcement 2 | . 2 . Assault . | . . . Garrison . | . . . Intercept . | . . . Searches Triggered . | . . . Construction Impeded . | . . . Haulers Reinforced . | . . . Active Scanning Responses . | . . . Cargo Convoy Interrupts . | . . . Stealth | -11 -10 -10 --------- Run | Yrd Mat Sub Distress Signals 4 | . 4 . Communications Jammed . | . . . Distress Signals . | . . . Times Spotted 35 | . 17 18 Peak Tracking Total 6 | . 4 6 Tactical Retreats 2 | . 2 . Traps | -11 -10 -10 ------- Run | Yrd Mat Sub Traps Triggered 2 | . . 2 Indirectly . | . . . Trap Hack Attempts . | . . . Triggered . | . . . Disarmed . | . . . Reprogrammed . | . . . Reused . | . . . Traps Extracted . | . . . Installed . | . . . Triggered . | . . . Machines | -11 -10 -10 ---------- Run | Yrd Mat Sub Machines Disabled 1 | . 1 . Max in Single Turn 1 | . 1 . Machines Repaired . | . . . Machines Dismantled . | . . . Machines Sabotaged . | . . . Overloaded Fab Kills . | . . . Hacking | -11 -10 -10 --------- Run | Yrd Mat Sub Machines Accessed 7 | . 7 . Terminals 6 | . 6 . Fabricators . | . . . Repair Stations . | . . . Recycling Units 1 | . 1 . Scanalyzers . | . . . Garrison Access . | . . . Total Hacks 29 | . 29 . Successful 17 | . 17 . Failed 12 | . 12 . Catastrophic . | . . . Database Lockouts . | . . . Manual 23 | . 23 . Terminals 27 | . 27 . Fabricators . | . . . Repair Stations . | . . . Recycling Units 2 | . 2 . Scanalyzers . | . . . Garrison Access . | . . . Terminal Hacks 6 | . 6 . Robot Analysis 1 | . 1 . Prototype ID Bank 1 | . 1 . Terminal Index 1 | . 1 . Locate Traps 1 | . 1 . Recall Reinforcements 1 | . 1 . Zone Layout 1 | . 1 . Fabricator Hacks . | . . . Repair Station Hacks . | . . . Recycling Unit Hacks 2 | . 2 . Report Inventory 1 | . 1 . Retrieve Components 1 | . 1 . Scanalyzer . | . . . Garrison Access Hacks . | . . . Unauthorized Hacks 9 | . 9 . Terminals 9 | . 9 . Assimilate 1 | . 1 . Botnet 2 | . 2 . Skim 6 | . 6 . Fabricators . | . . . Repair Stations . | . . . Recycling Units . | . . . Scanalyzers . | . . . Garrison Access . | . . . Data Cores Recovered . | . . . Used . | . . . Hacking Detections 6 | . 6 . Full Trace Events . | . . . Feedback Events . | . . . Feedback Blocked . | . . . Robot Schematics Acquired . | . . . Robots Built . | . . . Authchips . | . . . Time . | . . . Total Robot Build Rating . | . . . Part Schematics Acquired . | . . . Parts Built . | . . . Authchips . | . . . Time . | . . . Total Part Build Rating . | . . . Parts Repaired . | . . . Time . | . . . Parts Recycled . | . . . Recycled Matter . | . . . Retrieved Matter . | . . . Retrieved Components 2 | . 2 . Parts Scanalyzed . | . . . Part Schematics Acquired . | . . . Parts Damaged . | . . . Bothacking | -11 -10 -10 ------------ Run | Yrd Mat Sub Used RIF Installer . | . . . Robots Hacked . | . . . Non-combat . | . . . Combat . | . . . Robot Hacks Applied . | . . . Relay Couplers Released . | . . . Fabnet Peak Effective % . | . . . Robots Rewired . | . . . Allies Hacked . | . . . Hacks Repelled . | . . . Allies | -11 -10 -10 -------- Run | Yrd Mat Sub Total Allies 1 | . 1 . Largest Group 1 | . 1 . Highest-Rated Group 10 | . 10 . Highest-Rated Ally 10 | . 10 . Total Orders . | . . . Ally Attacks . | . . . Total Damage . | . . . Kills . | . . . Allies Corrupted . | . . . Allies Melted . | . . . Intel | -11 -10 -10 ------- Run | Yrd Mat Sub Active Infowar (turns) 2412 | 16 912 1484 Terrain 1532 | 16 912 604 Machine Analysis 880 | . . 880 Robot Analysis Total 1 | . 1 . Derelict Logs Recovered 3 | . . 3 Drone Launches . | . . . Drone Recoveries . | . . . Exploration | -11 -10 -10 ------------- Run | Yrd Mat Sub Turns Passed 2525 | 98 912 1515 Spaces Moved 1554 | 52 507 995 Core 5 | 5 . . Treads 540 | . 238 302 Legs 316 | 47 269 . Wheels 693 | . . 693 Hover . | . . . Flight . | . . . Fastest Speed 50 | 50 120 110 Average Speed 131 | 113 138 128 Slowest Speed 160 | 120 160 160 Overloaded Moves . | . . . Propulsion Burnouts . | . . . Robots Hopped . | . . . Potential Cave-ins . | . . . Cave-ins Triggered . | . . . Exploration Rate (%) 55 | 3 91 71 Regions Visited 2 Branch Regions 1 Pre-discovered Areas 4 | . 3 1 Known Exits Taken 1 | . 1 . Unknown Exits Taken 1 | 1 . . Scrap Searched 13 | . . 13 Spaces Dug 1 | . 1 . Terrain Destroyed 15 | . 1 14 Melee . | . . . Projectile 1 | . 1 . AOE 14 | . . 14 Terrain Rammed . | . . . Walls Destroyed . | . . . Machines Disabled . | . . . Actions | -11 -10 -10 --------- Run | Yrd Mat Sub Total 1808 | 71 627 1110 Wait 74 | . 50 24 Move 1552 | 51 506 995 Hop . | . . . Pick Up 20 | 4 7 9 Fast Attach 9 | 7 . 2 Attach 7 | . 2 5 Detach . | . . . Swap 20 | . 7 13 Drop 9 | . 5 4 Fire 116 | 9 49 58 Melee . | . . . Ram . | . . . Kick 1 | . 1 . Crush . | . . . Escape Stasis . | . . . Rewire . | . . . Trap . | . . . Miscellaneous . | . . . Route ------- -11/Scrapyard -10/Materials (discovered 6 exits: *Mat x3 / *Min x2 / *Sub) -10/Subcaves (discovered 2 exits: [*Mat] / [*Rec]) History --------- Turn | Location | Event 5 | -11/Scrapyard | Discovered new exit (range 15) 99 | -11/Scrapyard | Entered Materials 101 | -10/Materials | Discovered new exit (range 8) 215 | -10/Materials | Discovered new exit (range 8) 313 | -10/Materials | Build established: Mutant 583 | -10/Materials | Discovered new exit (range 15) 747 | -10/Materials | Discovered new exit (range 16) 765 | -10/Materials | Identified exit to Subcaves 765 | -10/Materials | Identified exit to Materials 793 | -10/Materials | Learned location of Mines (-9) 811 | -10/Materials | Identified exit to Mines 819 | -10/Materials | Learned location of Mines (-10) 829 | -10/Materials | Learned 2 Storage zone layouts 1011 | -10/Materials | Entered Subcaves 1012 | -10/Subcaves | Approached by a straggling Scientist 1607 | -10/Subcaves | Core integrity fell below 50% 1646 | -10/Subcaves | Lost 5 parts (1p2n1u1w) 1921 | -10/Subcaves | Disturbed a concealed Subdweller 1954 | -10/Subcaves | Discovered new exit (range 10) 2063 | -10/Subcaves | Learned Materials terminal intel 2128 | -10/Subcaves | Core integrity fell below 20% 2172 | -10/Subcaves | Disturbed a concealed Subdweller 2279 | -10/Subcaves | Build established: Scavenger-Mutant 2420 | -10/Subcaves | Shifting Twisted Machinery released Enh. Flamer 2436 | -10/Subcaves | Shifting Twisted Machinery released Piercing Trap 2524 | -10/Subcaves | Discovered new exit (range 15) 2526 | -10/Subcaves | Destroyed by S-10 Pest with Light Assault Rifle Last Messages --------------- 02170_ Searching scrap... 02170_ Found Flamer. 02170_ Found 38 Matter. 02172_ 27-DJC(R) angrily emerges from the Twisted Machinery. 02173_ Sub. Monowheel destroyed. 02180_ 27-DJC(R) suffers critical hit (Destroy). 02180_ 27-DJC(R) destroyed. 02183_ Searching scrap... 02183_ Found Scrap Shield. 02183_ Found 31 Matter. 02184_ Acquired 15 matter. 02221_ Acquired derelict log, extracted data. World map updated: -8/Materials. 02371_ D4-1VP(u) tweaks Twisted Machinery. Enh. Flamer falls loose from the Twisted Machinery. Piercing Trap falls loose from the Twisted Machinery. 02524_ EXIT=FOUND Map ----- +----------------------------------------------------+ | ?????????????????????????????????????????????????? | | ??????????????########???????????????????????????? | | ??????????????# #???????????????????????????? | | ?????????????## #### #????#####??###?#####?????? | | ???????####### #????? #????# ### ### #?##### | | ??????## #????? #?????# ### | | ??????# #????? #?###?# ## | | ??????# ### ##???# ## #??# ## | | ??????# ###?# ##### #??# ##### | | ?????## #??# #?## #??## | | ?????#"""" ##?## ### #?# #?## | | ?????# ## ##?# # ## #??# #### ### | | ????"" # ###" ## #??????# ##?## #### | | ????"" ### ""## #???????# ##### #??? | | ??? ""#?#" ### ###?????#### #??? | | ??? "??### ### ###??#### ##??? | | ??""""???# ## #?## ##???? | | ??#" ????## ## #?# ##????? | | ??#" ???## ### |% #?????? | | ??#" ???# "" ## #### #?????? | | ???" #?## "" ###### #####??########?????? | | ?? "" ## ####?# #???????????????????? | | ?? """"" #?# ##???????????????????? | | ???#""" #### ##?????? "?????????? | | ???#### ## ## s t""?????????? | | ????### ### @ s